Cogmind - Beta 13 @@@ ROGUE MODE // 2024.07.31 @ 21:38:24 Player: weedlord420 Result: Destroyed by KR-SRN(R) with Subdweller Machine Gun Performance ------------- Evolutions (0) 0 Regions Visited (2) 400 Robots Destroyed (29) 145 Value Destroyed (914) 914 Prototype IDs (10) 200 Alien Tech Used (0) 0 Bonus (0) 0 TOTAL SCORE: 1659 Bonus ------- None Cogmind --------- Core Integrity 0/250 Matter 270/300 Energy 265/265 System Corruption 0% Temperature Cool (6) Movement Walking (130) Location -10/Subcaves Parts ------- > --- POWER (1) -------- Reinforced Ion Engine > --- PROPULSION (2) --- Cargo Legs > --- UTILITY (2+1) ---- Large Storage Unit Hardened Light Armor Plating > --- WEAPON (2) ------- Shotgun Subdweller Machine Gun > --- INVENTORY (15) --- Reinforced Ion Engine Subdweller Power Source Subdweller Power Source Light Nuclear Core Flight Unit Flight Unit Flight Unit Improved Heat Sink Power Shielding Power Shielding Hardened Light Armor Plating Makeshift System Restoration Module Enhanced Flamer Peak State ------------ > --- POWER ------------ Reinforced Ion Engine > --- PROPULSION ------- Cargo Legs > --- UTILITY ---------- Large Storage Unit Scrap Shield > --- WEAPON ----------- Subdweller Beam Cannon Shotgun > --- INVENTORY -------- Reinforced Ion Engine Light Nuclear Core Flight Unit Flight Unit Flight Unit Improved Heat Sink Power Shielding Power Shielding Hardened Light Armor Plating Makeshift System Restoration Module Subdweller Machine Gun Enhanced Flamer Scrap Shield Fragment [Rating: 29] Favorites ----------- Power Reinforced Ion Engine Engine Reinforced Ion Engine Propulsion Wheel Treads Light Treads Leg Cargo Legs Wheel Wheel Utility Large Storage Unit Storage Large Storage Unit Protection Hardened Light Armor Plating Weapon Shotgun Energy Cannon Subdweller Beam Cannon Ballistic Gun Shotgun Build | -11 -10 -10 ------- Run | Yrd Mat Sub Slots Evolved . | . . . Power . | . . . Propulsion . | . . . Utility . | . . . Weapon . | . . . Parts Attached 28 | 6 10 12 Power 2 | 1 1 . Engine 2 | 1 1 . Core . | . . . Reactor . | . . . Propulsion 8 | 2 2 4 Treads 3 | 2 1 . Leg 1 | . . 1 Wheel 4 | . 1 3 Hover . | . . . Flight . | . . . Utility 8 | 1 3 4 Device . | . . . Storage 2 | 1 1 . Processor . | . . . Hackware . | . . . Protection 6 | . 2 4 Artifact . | . . . Weapon 10 | 2 4 4 Energy Gun . | . . . Energy Cannon 1 | . . 1 Ballistic Gun 9 | 2 4 3 Ballistic Cannon . | . . . Launcher . | . . . Special Weapon . | . . . Impact Weapon . | . . . Slashing Weapon . | . . . Piercing Weapon . | . . . Special Melee Weapon . | . . . Unidentified Prototypes . | . . . Parts Lost 7 | . . 7 Power . | . . . Propulsion 2 | . . 2 Utility 3 | . . 3 Weapon 2 | . . 2 Highest Loss Streak 2 | . . 2 To Critical Strikes . | . . . Average Slot Usage (%) 89 | . 91 89 Engine 13 | . 14 13 Treads 9 | . 15 7 Leg 2 | . . 3 Wheel 10 | . 9 11 Storage 13 | . 14 13 Protection 12 | . 9 13 Ballistic Gun 25 | . 27 25 Naked Turns . | . . . Heaviest Build 59 | 13 41 59 Greatest Support 55 | 40 40 55 Greatest Overweight (x) 4 | 1 4 4 Average Overweight (x) 2 | . 2 2 Largest Inventory Capacity 15 | 8 15 15 Average Capacity 14 | 5 12 15 Most Carried 15 | 5 15 15 Average Carried 12 | 3 8 13 Final Capacity 15 | 8 15 15 Final Carried 15 | . 15 13 Class Distribution -------------------- 100% | Mutant Dominant Class ---------------- Mutant | -10/Materials Mutant | -10/Subcaves Resources | -11 -10 -10 ----------- Run | Yrd Mat Sub Matter Collected 1105 | 260 300 545 Remotely . | . . . Salvage Created 1143 | . 441 702 Parts 73 | . 31 42 Haulers Intercepted 2 | . 2 . Recyclers Shooed . | . . . Parts Field Recycled . | . . . Retrieved Matter . | . . . Parts Self-Destructed 13 | . . 13 Prevented . | . . . Kills | -11 -10 -10 ------- Run | Yrd Mat Sub Combat Hostiles Destroyed 25 | . 9 16 Guns 25 | . 9 16 Classes Destroyed 7 | . 5 2 Builder 1 | . 1 . Hauler 2 | . 2 . Watcher 1 | . 1 . Swarmer 3 | . 3 . Grunt 10 | . 6 4 Cobbler 1 | . . 1 Subdweller 12 | . . 12 Best Kill Streak 5 | . 5 2 Combat Bots Only 5 | . 5 2 Max Kills in Single Turn 2 | . 2 1 Gunslinging 1 | . 1 . Exploded . | . . . Melee . | . . . Uniques/NPCs Destroyed . | . . . Combat | -11 -10 -10 -------- Run | Yrd Mat Sub Hostile Shots Fired 131 | . 35 96 Missed 28 | . 7 21 Damage Taken 1838 | . 298 1540 Core 263 | . 83 180 Absorbed by Shields . | . . . Core Remaining (%) 100 | 100 . . Volleys Fired 95 | . 25 70 Largest 2 | . 2 2 Hottest 103 | . 46 103 Shots Fired 186 | . 50 136 Gun 184 | . 50 134 Cannon 2 | . . 2 Launcher . | . . . Special . | . . . Kinetic 184 | . 50 134 Thermal 2 | . . 2 Explosive . | . . . Electromagnetic . | . . . Robot Hit Streak 18 | . 6 18 Robot Miss Streak 5 | . 5 4 Penetration Max . | . . . Secondary Targets 4 | . 2 2 Max Gunslinging Chain 1 | . 1 1 Shots Hit Robots 135 | . 35 100 Core Hits 75 | . 23 52 Critical Kills 1 | . 1 . Critical Parts Destroyed 1 | . 1 . Critical Strikes 2 | . 2 . Destroy 2 | . 2 . Melee Attacks . | . . . Impact . | . . . Slashing . | . . . Piercing . | . . . Sneak Attacks . | . . . Combat Hostiles . | . . . Follow-up Attacks . | . . . Damage Inflicted 2201 | . 545 1656 Guns 2201 | . 545 1656 Cannons . | . . . Explosions . | . . . Melee . | . . . Ramming . | . . . Kinetic 2201 | . 545 1656 Thermal . | . . . Explosive . | . . . Electromagnetic . | . . . Impact . | . . . Slashing . | . . . Piercing . | . . . Highest Corruption . | . . . Average Corruption . | . . . Corruption Purged . | . . . Corruption Blocked . | . . . Overload Shots . | . . . Overflow Damage . | . . . Projectiles . | . . . Explosions . | . . . Melee . | . . . Knockbacks . | . . . Impact . | . . . Kinetic . | . . . Secondary . | . . . Self-Inflicted Damage . | . . . Shots . | . . . Rammed . | . . . Targets Rammed . | . . . Kicked . | . . . Crushed . | . . . Highest Temperature 293 | . 66 293 Average Temperature 32 | . 18 109 Received Heat Transfer 873 | . 120 753 Siege Activations . | . . . Robots Corrupted . | . . . Combat Hostiles . | . . . Parts Fried . | . . . Impact Corruptions . | . . . Robots Melted . | . . . Combat Hostiles . | . . . Parts Melted . | . . . Heat Transferred . | . . . Parts Sabotaged . | . . . Parts Stolen . | . . . Parts Stripped . | . . . Power Chain Reactions . | . . . Alert | -11 -10 -10 ------- Run | Yrd Mat Sub Peak Influence 181 | . 181 . Initial . | . . . Average 52 | . 55 . Maximum Alert Level . | . . . Low Security (%) 100 | 100 100 . Level 1 . | . . . Level 2 . | . . . Level 3 . | . . . Level 4 . | . . . Level 5 . | . . . High Security . | . . . Max Security . | . . . Squads Dispatched . | . . . Investigation . | . . . Extermination . | . . . Reinforcement . | . . . Assault . | . . . Garrison . | . . . Intercept . | . . . Searches Triggered . | . . . Construction Impeded . | . . . Haulers Reinforced . | . . . Active Scanning Responses . | . . . Cargo Convoy Interrupts . | . . . Stealth | -11 -10 -10 --------- Run | Yrd Mat Sub Distress Signals 1 | . 1 . Communications Jammed . | . . . Distress Signals . | . . . Times Spotted 35 | . 17 18 Peak Tracking Total 4 | . 4 2 Tactical Retreats . | . . . Traps | -11 -10 -10 ------- Run | Yrd Mat Sub Traps Triggered 4 | . 2 2 Indirectly . | . . . Trap Hack Attempts . | . . . Triggered . | . . . Disarmed . | . . . Reprogrammed . | . . . Reused . | . . . Traps Extracted . | . . . Installed . | . . . Triggered . | . . . Machines | -11 -10 -10 ---------- Run | Yrd Mat Sub Machines Disabled 1 | . . 1 Max in Single Turn 1 | . . 1 Machines Repaired . | . . . Machines Dismantled . | . . . Machines Sabotaged . | . . . Overloaded Fab Kills . | . . . Hacking | -11 -10 -10 --------- Run | Yrd Mat Sub Machines Accessed 4 | . 3 1 Terminals 3 | . 3 . Fabricators . | . . . Repair Stations . | . . . Recycling Units . | . . . Scanalyzers . | . . . Garrison Access . | . . . Total Hacks 18 | . 9 9 Successful 12 | . 3 9 Failed 6 | . 6 . Catastrophic 2 | . 2 . Database Lockouts . | . . . Manual 3 | . 3 . Terminals 9 | . 9 . Fabricators . | . . . Repair Stations . | . . . Recycling Units . | . . . Scanalyzers . | . . . Garrison Access . | . . . Terminal Hacks 11 | . 2 9 Record 8 | . . 8 Branch Access Points 1 | . 1 . Terminal Index 1 | . 1 . Derelict Proto ID Bank 1 | . . 1 Fabricator Hacks . | . . . Repair Station Hacks . | . . . Recycling Unit Hacks . | . . . Scanalyzer . | . . . Garrison Access Hacks . | . . . Unauthorized Hacks 1 | . 1 . Terminals 1 | . 1 . Operators 1 | . 1 . Fabricators . | . . . Repair Stations . | . . . Recycling Units . | . . . Scanalyzers . | . . . Garrison Access . | . . . Data Cores Recovered . | . . . Used . | . . . Hacking Detections 3 | . 3 . Full Trace Events . | . . . Feedback Events . | . . . Feedback Blocked . | . . . Robot Schematics Acquired . | . . . Robots Built . | . . . Authchips . | . . . Time . | . . . Total Robot Build Rating . | . . . Part Schematics Acquired . | . . . Parts Built . | . . . Authchips . | . . . Time . | . . . Total Part Build Rating . | . . . Parts Repaired . | . . . Time . | . . . Parts Recycled . | . . . Recycled Matter . | . . . Retrieved Matter . | . . . Retrieved Components . | . . . Parts Scanalyzed . | . . . Part Schematics Acquired . | . . . Parts Damaged . | . . . Bothacking | -11 -10 -10 ------------ Run | Yrd Mat Sub Used RIF Installer . | . . . Robots Hacked . | . . . Non-combat . | . . . Combat . | . . . Robot Hacks Applied . | . . . Relay Couplers Released . | . . . Fabnet Peak Effective % . | . . . Robots Rewired . | . . . Allies Hacked . | . . . Hacks Repelled . | . . . Allies | -11 -10 -10 -------- Run | Yrd Mat Sub Total Allies . | . . . Largest Group . | . . . Highest-Rated Group . | . . . Highest-Rated Ally . | . . . Total Orders . | . . . Ally Attacks . | . . . Total Damage . | . . . Kills . | . . . Allies Corrupted . | . . . Allies Melted . | . . . Intel | -11 -10 -10 ------- Run | Yrd Mat Sub Robot Analysis Total . | . . . Derelict Logs Recovered 1 | . . 1 Drone Launches . | . . . Drone Recoveries . | . . . Exploration | -11 -10 -10 ------------- Run | Yrd Mat Sub Turns Passed 2814 | 43 763 2008 Spaces Moved 1575 | 37 294 1244 Core 32 | 32 . . Treads 105 | 5 100 . Legs 407 | . . 407 Wheels 1031 | . 194 837 Hover . | . . . Flight . | . . . Fastest Speed 50 | 50 125 110 Average Speed 138 | 87 162 134 Slowest Speed 240 | 160 240 200 Overloaded Moves . | . . . Propulsion Burnouts . | . . . Robots Hopped . | . . . Cave-ins Triggered . | . . . Exploration Rate (%) 40 | 3 46 72 Regions Visited 2 Branch Regions 1 Pre-discovered Areas . | . . . Known Exits Taken . | . . . Unknown Exits Taken 2 | 1 1 . Scrap Searched 13 | . . 13 Spaces Dug . | . . . Terrain Destroyed . | . . . Melee . | . . . Projectile . | . . . AOE . | . . . Terrain Rammed . | . . . Walls Destroyed . | . . . Machines Disabled . | . . . Actions | -11 -10 -10 --------- Run | Yrd Mat Sub Total 2021 | 47 528 1446 Wait 264 | . 173 91 Move 1573 | 36 293 1244 Hop . | . . . Pick Up 39 | 5 22 12 Fast Attach 7 | 1 4 2 Attach 19 | 5 5 9 Detach . | . . . Swap 2 | . 1 1 Drop 15 | . 5 10 Fire 95 | . 25 70 Melee . | . . . Ram . | . . . Kick . | . . . Crush . | . . . Escape Stasis . | . . . Rewire . | . . . Trap . | . . . Miscellaneous 7 | . . 7 Route ------- -11/Scrapyard -10/Materials (discovered 3 exits: *Min x2 / *Sub) -10/Subcaves (discovered 1 exit: [*Mat]) History --------- Turn | Location | Event 18 | -11/Scrapyard | Discovered new exit (range 12) 44 | -11/Scrapyard | Entered Materials 334 | -10/Materials | Build established: Mutant 336 | -10/Materials | Discovered new exit (range 15) 530 | -10/Materials | Discovered new exit (range 4) 633 | -10/Materials | Identified exit to Mines 807 | -10/Materials | Entered Subcaves 998 | -10/Subcaves | Disturbed a concealed Subdweller 1274 | -10/Subcaves | Core integrity fell below 50% 1340 | -10/Subcaves | Learned 2 Materials zone layouts 2035 | -10/Subcaves | Discovered new exit (range 8) 2142 | -10/Subcaves | Visited 4L-MR0's lab 2160 | -10/Subcaves | Found Cargo Legs 2161 | -10/Subcaves | Attached Cargo Legs, gained temporary slots: Utility x2 2466 | -10/Subcaves | Shifting Twisted Machinery released Sub. Monowheel 2475 | -10/Subcaves | Shifting Twisted Machinery released Riot Gun 2571 | -10/Subcaves | Core integrity fell below 20% 2815 | -10/Subcaves | Destroyed by KR-SRN(R) with Subdweller Machine Gun Last Messages --------------- Sub. Monowheel falls loose from the Twisted Machinery. Riot Gun falls loose from the Twisted Machinery. 02540_ 9A-QGL(R) destroyed. 02543_ Critical hit (Destroy). 02543_ LR-3BD(R) destroyed. 02546_ Acquired 36 matter. 02552_ Scrap Shield Fragment affixed to Scrap Shield (+43). 02574_ RK-EJW(R) destroyed. 02574_ Switching to secondary target: 8G-SLL(R). 02578_ 8G-SLL(R) affixes Scrap Shield Fragment to Scrap Shield. 02589_ Scrap Shield destroyed. 02590_ Temporary Utility slot lost. 02590_ 8G-SLL(R) destroyed. 02593_ Acquired 24 matter. 02594_ Acquired 18 matter. 02602_ Acquired Sub. Power Source. 02614_ Acquired 23 matter. Map ----- +----------------------------------------------------+ | ?????????????????????????????????????????????????# | | ????????????????????????????????????????????????? | | ?????????????????????????????????????????????????# | | ????????????????????????????????????????????????? | | ???????????????????????????????????????????????### | | ???????????????????????????????????????????????? | | ????????????????????????????????????????????????? | | ???????????????????????????? ????????????????????? | | ??????????????????????????? ???????????????????? | | ???????????????????????????#"" ??????????###?????# | | ???????????????????????????#" ???####### ###??## | | ????????????????????????? "# ??# ## #### | | ?????????????????????????""?""" #?# | | ????????????????????????? ##"" ## | | ????????????????????????? #?# | | ????????????????????????? ?# | | ????????????????????###?? ??# | | ????????????????????# ## R??# | | ????????????????????? ??### ## ###### | | ?????????????????????? ????## ## #####?## | | ???????????? ?????????? ?????# ?# #?# ##?## | | ??????????? ???????# ?????###?## ### #### | | ?????????????# ???## ####?###???# | | ?????????????# ## ## ### ###### | | ?????????????# R ## | | ?????????????# @ # | | ????????????# #### ## # ## | | ?????????? ## ?????####### ### ## | | ??????????????????##?????????????## ##?## ### | | ??????????????????????????????????## ##???###?# | | ???????????????????????????????????###????????# | | ??????????????????????????????????????????????# | | ??????????????????????????????????????????????#### | | ?????????????????????????????????????????????????? | | ?????????????????????????????????????????????????? | | ?????????????????????????????????????????????????? | | ?????????????????????????????????????????????????? | | ?????????????????????????????????????????????????? | | ?????????????????????????????????????????????????? | | ?????????????????????????????????????????????????? | | ?????????????????????????????????????????????????? | | ?????????????????????????????????????????????????? | | ?????????????????????????????????????????????????? | | ?????????????????????????????????????????????????? | | ?????????????????????????????????????????????????? | | ?????????????????????????????????????????????????? | | ?????????????????????????????????????????????????? | | ?????????????????????????????????????????????????? | | ?????????????????????????????????????????????????? | | ?????????????????????????????????????????????????? | +----------------------------------------------------+ Best States ------------- Heat Dissipation 25 Energy Generation 12 Energy Capacity 265 Matter Stores 300 Matter Capacity 300 Sight Range 16 Terrain Scan Density 10 Armor Coverage 800 Evasion (%) 55 Recoil Reduction 2 Item Schematics ----------------- None Robot Schematics ------------------ None Fabricated ------------ Nothing Alien Tech Used ----------------- None Achievements -------------- None Challenges ------------ None Game ------ Seed BombardmentReflectivePod Manual? 0 Play Time 00:17:37 Cumulative 50.9 hours Start 2024.07.31 @ 21:23:57 End 2024.07.31 @ 21:38:24 Sessions 1 Manual Loads 0 Difficulty Rogue Special Mode None Game No. 95 Rogue 94 Adventurer 1 Explorer 0 Win Type - Total 0 Types 0/0/0/0/0/0/0/0/0 Lore% 27 Gallery% 43 Achievement% 36 Wizard Run 0 Options --------- Layout 2 ASCII 0 Keyboard 0 Movement Mouse Keybinds 0 Fullscreen 1 Font 48/Smallcaps Map View 50x44 Zoom Use 0% Tactical HUD 1 Map Filters NONE Filters NONE Steam 1 RUN: 08531d16-9440-4127-b5ce-fdd7cd0dbe08